bitfinex-derivatives/quotes_SOLF0:USTF0_20250331
["timestamp","ask_amount","ask_price","bid_price","bid_amount"]
[1743435786965,7.8696,127.08,127.07,0.05197992]
[1743435789971,0.05475047,127.1,127.07,0.05197992]
[1743435790959,0.05475047,127.1,127.03,354.3185]
[1743435790960,16.93658721,127.09,127.03,354.3185]
[1743435791162,16.93658721,127.11,127.03,386.4785]
[1743435791559,7.8687,127.1,127.04,3.2334]
[1743435791761,16.93658721,127.12,127.04,3.2334]
[1743435791967,16.93658721,127.13,127.05,23.52228721]
[1743435792170,0.05588076,127.09,127.07,0.0579768]
[1743435793274,7.8669,127.13,127.07,16.99456401]
[1743435793471,7.8669,127.13,127.07,371.25508721]
[1743435793676,7.8669,127.13,127.1,7.8681]
[1743435793980,3.2794,127.16,127.1,32.16]
[1743435794268,16.93658721,127.17,127.12,7.8668]
[1743435794575,299.87658721,127.2,127.13,32.16]
[1743435794775,16.93658721,127.18,127.13,32.16]
[1743435795074,7.8659,127.14,127.13,32.16]
[1743435795274,16.93658721,127.16,127.09,32.14]
[1743435795468,7.8676,127.12,127.09,32.14]
[1743435795773,16.98769418,127.14,127.11,0.05320468]
[1743435795974,7.8672,127.12,127.11,0.05320468]
[1743435798877,16.98769418,127.14,127.11,0.05320468]
[1743435799585,7.8672,127.12,127.11,0.05320468]
[1743435799786,0.05110697,127.14,127.11,0.05320468]
[1743435800888,0.05110697,127.14,127.12,32.14]
[1743435801279,0.05110697,127.14,127.13,7.8665]
[1743435803187,0.05110697,127.14,127.12,32.14]
[1743435803487,7.8665,127.13,127.12,32.14]
[1743435803691,0.05110697,127.14,127.12,32.14]
[1743435804889,7.91730697,127.14,127.12,32.14]
[1743435806191,7.8665,127.13,127.12,32.14]
[1743435806385,0.05110697,127.14,127.11,0.05320468]
[1743435806781,7.8672,127.12,127.11,0.05320468]
[1743435807690,24.80378721,127.12,127.11,0.05320468]
[1743435809884,0.05110697,127.14,127.11,0.05320468]
[1743435810697,0.05110697,127.14,127.11,7.92080468]
[1743435811392,7.91720697,127.14,127.11,7.92080468]
[1743435812293,7.91720697,127.14,127.11,0.05320468]
[1743435812797,7.91720697,127.14,127.11,7.92060468]
[1743435814392,7.91720697,127.14,127.12,7.8671]
[1743435814591,0.05110697,127.14,127.12,7.8671]
[1743435814899,0.05110697,127.14,127.12,7.8666]
[1743435815195,0.05110697,127.14,127.11,0.05320468]
[1743435816397,7.8666,127.13,127.11,7.92060468]
[1743435816597,0.05110697,127.14,127.11,7.92060468]
[1743435817297,0.05110697,127.14,127.12,7.8672]
[1743435817685,0.05110697,127.14,127.11,0.05320468]
[1743435817686,7.91750697,127.14,127.11,0.05320468]
[1743435817887,0.05110697,127.14,127.11,0.05320468]
[1743435818298,7.8672,127.12,127.11,0.05320468]
[1743435819099,7.8668,127.13,127.11,0.05320468]
[1743435819396,0.05110697,127.14,127.11,0.05320468]
[1743435819890,7.8668,127.13,127.11,0.05320468]
[1743435820295,0.05110697,127.14,127.11,0.05320468]
[1743435820893,7.8665,127.13,127.11,0.05320468]
[1743435821094,0.05110697,127.14,127.11,0.05320468]
[1743435822095,7.8672,127.12,127.11,0.05320468]
[1743435822295,0.05110697,127.14,127.11,0.05320468]
[1743435822797,7.8669,127.13,127.11,0.05320468]
[1743435823399,0.05110697,127.14,127.11,0.05320468]
[1743435824499,0.05110697,127.14,127.12,7.8668]
[1743435824799,0.05110697,127.14,127.13,32.1]
[1743435825093,0.05110697,127.14,127.13,39.9665]
[1743435825394,299.87658721,127.2,127.13,32.1]
[1743435825804,299.87658721,127.2,127.16,7.8646]
[1743435825805,7.8635,127.18,127.16,7.8646]
[1743435826102,7.8635,127.18,127.16,32.1]
[1743435826496,0.05436912,127.18,127.16,32.15345175]
[1743435827102,7.91816912,127.18,127.16,32.15345175]
[1743435827299,0.05436912,127.18,127.16,32.15345175]
[1743435828200,7.8641,127.17,127.16,32.15345175]
[1743435829504,7.91806912,127.18,127.16,32.15345175]
[1743435829901,0.05436912,127.18,127.16,32.15345175]
[1743435831401,7.8641,127.17,127.16,32.15345175]
[1743435831602,0.05436912,127.18,127.16,32.15345175]
[1743435832398,0.05436912,127.18,127.16,386.47195175]
[1743435834003,7.91786912,127.18,127.16,386.47195175]
[1743435834396,0.05436912,127.18,127.16,386.47195175]
[1743435834598,7.8641,127.17,127.16,386.45195175]
[1743435835405,7.8641,127.17,127.16,32.13345175]
[1743435836505,7.8641,127.17,127.16,0.05345175]
[1743435838200,7.8663,127.14,127.12,354.3185]
[1743435838398,16.93658721,127.17,127.12,32.08]
[1743435838701,16.93658721,127.17,127.12,32.06]
[1743435838901,7.8665,127.13,127.12,32.06]
[1743435841299,7.8672,127.12,127.11,0.05800294]
[1743435841714,16.93658721,127.13,127.07,32.06]
[1743435841903,16.93658721,127.11,127.06,32.06]
[1743435842208,16.93658721,127.11,127.04,365.3575]
[1743435842401,7.8693,127.09,127.06,32.06]
[1743435842806,7.92485445,127.09,127.06,32.11566398]
[1743435843106,7.8699,127.08,127.06,32.11566398]
[1743435843310,0.05555445,127.09,127.06,0.05566398]
[1743435844406,16.99214166,127.09,127.06,0.05566398]
[1743435845308,7.87,127.08,127.06,0.05566398]
[1743435845511,0.05555445,127.09,127.06,0.05566398]
[1743435846109,0.05555445,127.09,127.07,32.08]
[1743435846414,0.05555445,127.09,127.07,39.9502]
[1743435846707,0.05555445,127.09,127.07,32.08]
[1743435848710,0.05555445,127.09,127.08,7.8696]
[1743435850400,0.05555445,127.09,127.07,32.08]
[1743435851003,7.8696,127.08,127.07,32.08]
[1743435851408,0.05555445,127.09,127.07,32.08]
[1743435851409,7.92495445,127.09,127.07,32.08]
[1743435852515,0.05555445,127.09,127.07,32.08]
[1743435853013,7.92505445,127.09,127.07,32.08]
[1743435853214,0.05555445,127.09,127.07,32.08]
[1743435853512,0.05555445,127.09,127.08,7.8696]
[1743435858214,0.05555445,127.09,127.07,39.95]
[1743435858414,0.05555445,127.09,127.06,0.05566398]
[1743435858611,0.05555445,127.09,127.07,32.06]
[1743435859016,7.8701,127.08,127.07,32.06]
[1743435859719,7.86,127.08,126.99,32.52090574]
[1743435859924,16.93658721,127.03,126.99,32.52090574]
[1743435860124,7.8746,127.0,126.99,32.52090574]
[1743435861313,0.05188927,127.01,126.99,32.52090574]
[1743435861314,7.92598927,127.01,126.99,32.52090574]
[1743435861519,0.05188927,127.01,126.99,32.52090574]
[1743435861919,0.05188927,127.01,127.0,32.06]
[1743435867722,0.05188927,127.01,127.0,39.9346]
[1743435869625,0.05188927,127.01,127.0,32.06]
[1743435870623,0.05188927,127.01,126.98,0.05080799]
[1743435871124,7.92628927,127.01,126.98,0.05080799]
[1743435871623,0.05188927,127.01,126.98,0.05080799]
[1743435872119,7.8752,126.99,126.98,0.05080799]
[1743435873216,27.26369016,127.0,126.92,386.3785]
[1743435873422,27.26369016,127.0,126.93,7.8789]
[1743435874127,7.8768,126.97,126.93,7.8789]
[1743435874325,7.8768,126.97,126.95,0.05636022]
[1743435874525,0.05034852,126.98,126.95,0.05636022]
[1743435875223,0.05034852,126.98,126.95,7.93376022]
[1743435875424,0.05034852,126.98,126.95,0.05636022]
[1743435876423,7.8766,126.97,126.95,0.05636022]
[1743435876924,0.05034852,126.98,126.95,0.05636022]
[1743435876925,7.92644852,126.98,126.95,0.05636022]
[1743435877126,0.05034852,126.98,126.95,0.05636022]
[1743435877633,7.92664852,126.98,126.95,0.05636022]
[1743435878828,7.92664852,126.98,126.95,7.93406022]
[1743435879027,0.05034852,126.98,126.95,0.05636022]
[1743435879524,0.05034852,126.98,126.96,7.8767]
[1743435879924,7.8765,126.97,126.89,354.3185]
[1743435880124,27.26369016,127.0,126.9,32.04]
[1743435880422,27.26369016,127.0,126.89,360.6232]
[1743435880423,7.878,126.95,126.89,360.6232]
[1743435880626,27.26369016,126.97,126.9,32.04]
[1743435881029,7.8776,126.96,126.9,39.9205]
[1743435881329,0.0506656,126.95,126.92,0.05951547]
[1743435881726,7.9284656,126.95,126.92,0.05951547]
[1743435882023,0.0506656,126.95,126.92,0.05951547]
[1743435883729,7.9284656,126.95,126.92,0.05951547]
[1743435884532,0.0506656,126.95,126.92,0.05951547]
[1743435884726,7.9306656,126.95,126.78,130.0836229]
[1743435884926,17.05741882,126.91,126.8,1.42682647]
[1743435885133,17.05741882,126.88,126.8,9.42]
[1743435885327,17.05741882,126.86,126.78,130.0836229]
[1743435885525,6.6465,126.87,126.78,130.0836229]
[1743435885725,6.6465,126.87,126.79,151.28332105]
[1743435885926,7.93875306,126.84,126.82,0.05686327]
[1743435886229,0.05395306,126.84,126.82,0.05686327]
[1743435886625,7.8852,126.83,126.82,0.05686327]
[1743435887923,7.8852,126.83,126.82,6.327e-05]
[1743435891731,35.29480212,126.84,126.82,6.327e-05]
[1743435892238,7.93895306,126.84,126.82,6.327e-05]
[1743435893236,7.8852,126.83,126.82,6.327e-05]
[1743435893832,7.93875306,126.84,126.82,6.327e-05]
[1743435894237,0.05395306,126.84,126.82,6.327e-05]
[1743435896134,7.93855306,126.84,126.82,6.327e-05]
[1743435896335,0.05395306,126.84,126.82,6.327e-05]
[1743435897333,7.8852,126.83,126.82,6.327e-05]
[1743435897636,7.8852,126.83,126.82,32.06006327]
[1743435897836,0.05395306,126.84,126.82,32.06006327]
[1743435899941,0.05395306,126.84,126.82,6.327e-05]
[1743435900131,0.05395306,126.84,126.82,32.06006327]
[1743435901438,0.05395306,126.84,126.82,39.94546327]
[1743435901642,0.05395306,126.84,126.82,32.06006327]
[1743435903647,0.05395306,126.84,126.82,39.94546327]
[1743435904543,0.05395306,126.84,126.83,7.8852]
[1743435905047,0.05395306,126.84,126.82,32.06006327]
[1743435905546,0.05395306,126.84,126.83,7.8852]
[1743435906046,0.05395306,126.84,126.82,39.94556327]
[1743435910251,7.93855306,126.84,126.82,39.94556327]
[1743435910453,0.05395306,126.84,126.82,39.94556327]
[1743435911253,0.05395306,126.84,126.82,32.06006327]
[1743435911451,7.93875306,126.84,126.82,32.06006327]
[1743435911853,7.93875306,126.84,126.82,39.94556327]
[1743435912050,0.05395306,126.84,126.82,32.06006327]
[1743435912253,0.05395306,126.84,126.83,7.8852]
[1743435912644,7.93885306,126.84,126.82,32.06006327]
[1743435913054,0.05395306,126.84,126.82,32.06006327]
[1743435913248,0.05395306,126.84,126.82,39.94546327]
[1743435913448,0.05395306,126.84,126.82,32.06006327]
[1743435914250,0.05395306,126.84,126.83,7.8852]
[1743435925159,42.1077431,126.91,126.87,7.8821]
[1743435925466,42.1077431,126.91,126.87,32.02]
[1743435925467,17.0843431,126.89,126.87,32.02]
[1743435925664,7.882,126.88,126.87,32.02]
[1743435927661,25.02079601,126.89,126.87,32.02]
[1743435927962,0.05455291,126.89,126.87,32.02]
[1743435928167,7.882,126.88,126.87,32.02]
[1743435929566,7.93625291,126.89,126.87,32.02]
[1743435929771,0.05455291,126.89,126.87,32.02]
[1743435930563,0.05455291,126.89,126.88,7.882]
[1743435931071,21.8239,126.91,126.87,41.7005]
[1743435931267,6.1268383,126.91,126.88,17.0843431]
[1743435932063,17.0843431,126.97,126.88,17.0843431]
[1743435932262,0.05807698,126.91,126.88,17.0843431]
[1743435932568,17.0843431,126.97,126.91,0.05295173]
[1743435932775,3.0984,126.98,126.93,0.05035773]
[1743435932972,0.05337944,126.95,126.94,7.878]
[1743435933271,0.05337944,126.95,126.94,39.878]
[1743435933472,0.05337944,126.95,126.94,32.0]
[1743435934774,7.93107944,126.95,126.94,32.0]
[1743435935171,0.05337944,126.95,126.94,32.0]
[1743435935772,7.93107944,126.95,126.94,32.0]
[1743435936372,0.05337944,126.95,126.94,32.0]
[1743435937075,0.05337944,126.95,126.94,39.8783]
[1743435939082,20.4853431,127.01,126.97,7.8761]
[1743435939282,3.401,127.01,126.98,31.98]
[1743435939482,7.8751,127.0,126.98,31.98]
[1743435939984,11.2754,127.01,126.98,31.98]
[1743435940282,0.05304186,127.0,126.98,39.9057875]
[1743435941784,0.05304186,127.0,126.99,7.8752]
[1743435942181,7.8723,127.04,126.98,49.1146306]
[1743435942380,3.3273,127.06,127.02,7.873]
[1743435942680,3.3273,127.06,127.03,31.96]
[1743435942884,3.4083,127.07,127.05,7.8714]
[1743435943074,3.4083,127.07,127.06,31.96]
[1743435943279,3.3604,127.11,127.06,31.96]
[1743435943582,0.05925592,127.08,127.06,39.8306]
[1743435944086,0.05925592,127.08,127.06,31.96]
[1743435945182,0.05925592,127.08,127.05,0.05221908]
[1743435945385,7.8703,127.07,127.06,31.94]
[1743435955894,7.92925592,127.08,127.06,31.94]
[1743435956091,0.05925592,127.08,127.06,31.94]
[1743435956693,7.8703,127.07,127.06,31.94]
[1743435957293,7.92925592,127.08,127.06,31.94]
[1743435957494,0.05925592,127.08,127.06,31.94]
[1743435957885,7.8703,127.07,127.06,31.94]
[1743435959892,0.05925592,127.08,127.06,31.94]
[1743435960393,7.92895592,127.08,127.06,39.8106]
[1743435960989,7.92895592,127.08,127.06,31.94]
[1743435961894,0.05925592,127.08,127.06,39.8105]
[1743435962097,0.05925592,127.08,127.06,49.0243431]
[1743435962596,0.05925592,127.08,127.07,7.8703]
[1743435963200,0.05925592,127.08,127.06,56.8949431]
[1743435963499,0.05925592,127.08,127.06,49.0243431]
[1743435963995,0.05925592,127.08,127.07,7.8703]
[1743435964995,0.05925592,127.08,127.06,39.8105]
[1743435965298,0.05925592,127.08,127.06,31.94]
[1743435965495,7.92915592,127.08,127.06,39.8108]
[1743435966401,0.05925592,127.08,127.06,39.8108]
[1743435966602,0.05925592,127.08,127.07,7.8703]
[1743435967201,3.1031,127.13,127.11,7.8676]
[1743435967397,3.1031,127.13,127.09,31.88]
[1743435967598,17.0843431,127.18,127.09,31.88]
[1743435967801,26.8389431,127.18,127.09,386.1985]
[1743435968502,0.05889429,127.15,127.12,0.05737457]
[1743435969003,7.8664,127.14,127.12,0.05737457]
[1743435969399,0.05889429,127.15,127.12,0.05737457]
[1743435969595,7.8663,127.14,127.12,0.05737457]
[1743435970303,0.05889429,127.15,127.12,0.05737457]
[1743435971203,0.05889429,127.15,127.12,31.93737457]
[1743435971404,7.8662,127.14,127.12,31.93737457]
[1743435971905,0.05889429,127.15,127.12,31.93737457]
[1743435972408,7.8665,127.13,127.12,0.05737457]
[1743435972611,17.0843431,127.14,127.07,31.88]
[1743435972812,7.8687,127.1,127.07,39.7502]
[1743435973206,3.3373,127.12,127.07,39.7502]
[1743435973407,11.2046,127.12,127.09,7.8686]
[1743435973909,11.2046,127.12,127.09,7.92221642]
[1743435973910,11.26329008,127.12,127.09,7.92221642]
[1743435974411,11.26329008,127.12,127.1,7.8684]
[1743435974811,7.8678,127.11,127.09,0.05361642]
[1743435975611,3.39599008,127.12,127.09,0.05361642]
[1743435975806,11.26349008,127.12,127.09,7.92211642]
[1743435976007,3.39599008,127.12,127.09,7.92211642]
[1743435976208,7.868,127.11,127.09,0.05361642]
[1743435976403,3.39599008,127.12,127.09,0.05361642]
[1743435977008,11.26359008,127.12,127.09,7.92221642]
[1743435977406,7.8681,127.11,127.09,7.92221642]
[1743435978111,11.26349008,127.12,127.09,7.92221642]
[1743435978508,0.05869008,127.12,127.1,42.7479211]
[1743435979010,0.05869008,127.12,127.11,7.8678]
[1743435979916,0.05869008,127.12,127.1,50.6160211]
[1743435980121,0.05869008,127.12,127.09,354.37211642]
[1743435980416,0.05869008,127.12,127.1,31.86]
[1743435980815,7.92609008,127.12,127.1,31.86]
[1743435981814,0.05869008,127.12,127.1,39.7283]
[1743435982520,0.05869008,127.12,127.11,7.8678]
[1743435983020,0.05869008,127.12,127.11,18.7557211]
[1743435983314,3.3735,127.17,127.15,7.8648]
[1743435983514,6.5439,127.18,127.15,42.7479211]
[1743435983818,3.1253,127.18,127.15,42.7479211]
[1743435984020,3.1253,127.18,127.16,7.8644]
[1743435984516,3.18298678,127.18,127.16,7.9243325]
[1743435984719,3.18298678,127.18,127.16,0.0599325]
[1743435985208,14.07090788,127.18,127.16,0.0599325]
[1743435985414,14.07090788,127.18,127.15,31.86]
[1743435985812,10.8879211,127.17,127.15,31.86]
[1743435986010,3.18298678,127.18,127.15,31.86]
[1743435986417,7.8647,127.16,127.15,31.86]
[1743435986616,7.8647,127.16,127.15,31.91028692]
[1743435988117,3.18298678,127.18,127.15,31.91028692]
[1743435988617,3.18298678,127.18,127.16,7.8646]
[1743435989216,11.04648678,127.18,127.16,7.8646]
[1743435989614,11.04648678,127.18,127.15,39.77528692]
[1743435991616,11.04648678,127.18,127.16,7.8646]
[1743435992119,0.05768678,127.18,127.16,18.7525211]
[1743435993020,0.05768678,127.18,127.17,7.8641]
[1743435993221,0.05768678,127.18,127.16,10.8879211]
[1743435994723,0.05768678,127.18,127.16,18.7523211]
[1743435996320,7.92138678,127.18,127.16,10.8879211]
[1743435997030,0.05768678,127.18,127.16,10.8879211]
[1743435997224,0.05768678,127.18,127.17,10.8879211]
[1743435997525,0.05768678,127.18,127.17,18.7520211]
[1743435998922,0.05768678,127.18,127.17,7.8641]
[1743435999927,0.05768678,127.18,127.17,18.7520211]
[1743436000429,0.05768678,127.18,127.16,10.8879211]
[1743436000626,0.05768678,127.18,127.15,42.79820802]
[1743436000926,7.8644,127.17,127.15,10.93820802]
[1743436001131,7.8644,127.17,127.16,31.8]
[1743436002129,0.05768678,127.18,127.16,31.8]
[1743436002531,0.05768678,127.18,127.16,42.6879211]
[1743436003029,7.92118678,127.18,127.16,50.5522211]
[1743436003233,0.05768678,127.18,127.16,50.5522211]
[1743436003528,0.05768678,127.18,127.16,42.6879211]
[1743436004433,0.05768678,127.18,127.17,7.8641]
[1743436004922,0.05768678,127.18,127.16,50.5522211]
[1743436005631,7.92148678,127.18,127.16,50.5522211]
[1743436005825,0.05768678,127.18,127.17,7.8641]
[1743436006329,0.05768678,127.18,127.16,50.5523211]
[1743436006531,0.05768678,127.18,127.16,39.6644]
[1743436006733,7.92158678,127.18,127.16,31.8]
[1743436006927,7.92158678,127.18,127.16,39.6645]
[1743436007123,0.05768678,127.18,127.16,39.6645]
[1743436008032,7.92138678,127.18,127.16,31.8]
[1743436008233,0.05768678,127.18,127.16,31.8]
[1743436008735,7.8641,127.17,127.16,31.8]
[1743436012841,0.05768678,127.18,127.15,31.83028692]
[1743436013335,7.8645,127.17,127.15,31.83028692]
[1743436015731,7.8645,127.17,127.15,39.69548692]
[1743436016336,0.05768678,127.18,127.16,10.8879211]
[1743436017141,0.05768678,127.18,127.16,18.7522211]
[1743436017336,0.05768678,127.18,127.16,10.8879211]
[1743436017536,0.05768678,127.18,127.16,18.7523211]
[1743436017840,0.05768678,127.18,127.16,10.8879211]
[1743436018138,0.05768678,127.18,127.17,7.8641]
[1743436019841,7.92118678,127.18,127.16,18.7524211]
[1743436020038,0.05768678,127.18,127.16,10.8879211]
[1743436020743,0.05768678,127.18,127.17,7.8641]
[1743436025342,0.05768678,127.18,127.15,42.71820802]
[1743436025538,0.05768678,127.18,127.15,0.05028692]
[1743436025738,10.94560788,127.18,127.15,31.81028692]
[1743436026239,7.8645,127.17,127.15,31.81028692]
[1743436026437,0.05768678,127.18,127.13,51.74142223]
[1743436026642,10.8879211,127.15,127.13,51.74142223]
[1743436026837,18.7538211,127.14,127.13,41.42522223]
[1743436027235,7.8659,127.14,127.13,41.42522223]
[1743436027834,0.05078531,127.15,127.13,31.76]
[1743436028033,0.05078531,127.15,127.13,42.6479211]
[1743436028846,0.05078531,127.15,127.14,7.8659]
[1743436029039,0.05078531,127.15,127.14,18.7538211]
[1743436029943,8.531e-05,127.15,127.14,18.7538211]
[1743436030139,10.8879211,127.23,127.14,10.8879211]
[1743436030337,10.8879211,127.23,127.18,10.8879211]
[1743436030534,10.8879211,127.23,127.19,31.76]
[1743436030943,7.8605,127.23,127.19,42.6479211]
[1743436031150,0.05148163,127.22,127.2,0.05457208]
[1743436031334,0.05148163,127.22,127.2,7.91627208]
[1743436031533,7.91258163,127.22,127.2,0.05457208]
[1743436033246,7.91258163,127.22,127.2,7.91677208]
[1743436033739,7.91258163,127.22,127.2,0.05457208]
[1743436034143,0.05148163,127.22,127.2,0.05457208]
[1743436034745,10.8879211,127.21,127.2,0.05457208]
[1743436035150,7.8616,127.21,127.2,0.05457208]
[1743436035947,7.91268163,127.22,127.2,0.05457208]
[1743436036148,0.05148163,127.22,127.2,0.05457208]
[1743436036844,0.05148163,127.22,127.21,7.8616]
[1743436039149,0.05148163,127.22,127.21,18.7495211]
[1743436042947,7.8582,127.27,127.21,10.8879211]
[1743436043148,7.8582,127.27,127.24,10.8879211]
[1743436043441,7.8574,127.28,127.26,7.8585]
[1743436043750,14.1947211,127.3,127.26,18.7464211]
[1743436044050,7.8572,127.29,127.26,18.7464211]
[1743436044250,7.91295061,127.29,127.27,0.05553223]
[1743436044451,7.91295061,127.29,127.28,31.72]
[1743436044645,0.05575061,127.29,127.28,31.72]
[1743436045148,0.05575061,127.29,127.28,39.5773]
[1743436045743,0.05575061,127.29,127.28,31.72]
[1743436046250,7.91245061,127.29,127.28,31.72]
[1743436046650,18.80037171,127.29,127.28,31.72]
[1743436047051,7.8573,127.28,127.27,0.05553223]
[1743436047247,7.8573,127.28,127.27,31.75553223]
[1743436049951,0.05575061,127.29,127.27,31.75553223]
[1743436050152,0.05575061,127.29,127.27,39.61333223]
[1743436050346,0.05575061,127.29,127.27,31.75553223]
[1743436050551,0.05575061,127.29,127.28,16.9683692]
[1743436050850,0.05575061,127.29,127.28,24.8256692]
[1743436051753,3.3278,127.34,127.3,7.8558]
[1743436052056,11.1818,127.34,127.31,31.7]
[1743436052257,3.3278,127.34,127.31,31.7]
[1743436053154,3.38168928,127.34,127.31,31.75133665]
[1743436053352,11.23578928,127.34,127.31,31.75133665]
[1743436053552,11.23578928,127.34,127.31,39.60673665]
[1743436053754,11.23558928,127.34,127.31,31.75133665]
[1743436054353,7.8543,127.33,127.31,31.75133665]
[1743436054955,7.8543,127.33,127.31,39.60663665]
[1743436055155,7.8543,127.33,127.31,31.75133665]
[1743436055353,7.90768928,127.34,127.31,31.75133665]
[1743436055550,0.05388928,127.34,127.31,31.75133665]
[1743436055952,0.05388928,127.34,127.33,7.8542]
[1743436056152,0.05388928,127.34,127.31,31.75133665]
[1743436057659,7.8547,127.33,127.31,0.05133665]
[1743436057858,7.8547,127.33,127.31,31.71133665]
[1743436058159,0.05388928,127.34,127.31,31.71133665]
[1743436058752,6.32698928,127.34,127.31,0.05133665]
[1743436059060,16.9683692,127.33,127.29,31.66]
[1743436059259,20.1212692,127.33,127.29,31.66]
[1743436059959,7.8554,127.31,127.3,0.05951986]
[1743436071767,7.8567,127.29,127.28,31.64]
[1743436072969,7.8567,127.29,127.27,0.05157182]
[1743436073170,7.8567,127.29,127.27,31.69157182]
[1743436073570,7.8573,127.28,127.27,31.69157182]
[1743436074070,7.8573,127.28,127.27,0.05157182]
[1743436075473,18.71253566,127.28,127.27,0.05157182]
[1743436076266,7.8595,127.25,127.23,354.3185]
[1743436076465,7.8595,127.25,127.24,31.64]
[1743436077175,7.8588,127.26,127.24,31.64]
[1743436077377,14.24693566,127.29,127.24,31.64]
[1743436077575,0.05062361,127.26,127.24,31.69624031]
[1743436077777,0.05062361,127.26,127.25,18.71433566]
[1743436079079,0.05062361,127.26,127.24,50.41087597]
[1743436079280,0.05062361,127.26,127.24,31.69624031]
[1743436079776,7.90942361,127.26,127.24,39.55584031]
[1743436079976,0.05062361,127.26,127.24,31.69624031]
[1743436080378,7.90942361,127.26,127.24,31.69624031]
[1743436080573,10.90585927,127.26,127.24,0.05624031]
[1743436080980,7.8591,127.25,127.24,0.05624031]
[1743436083181,0.05062361,127.26,127.24,10.91147597]
[1743436083478,0.05062361,127.26,127.25,42.47523566]
[1743436083983,3.26,127.31,127.25,42.47523566]
[1743436084181,3.26,127.31,127.27,10.85523566]
[1743436084378,3.26,127.31,127.28,31.62]
[1743436084571,3.3917,127.32,127.28,42.47523566]
[1743436085178,0.05564342,127.31,127.29,0.05925991]
[1743436085577,7.91114342,127.31,127.29,7.91565991]
[1743436085874,0.05564342,127.31,127.29,0.05925991]
[1743436086076,0.05564342,127.31,127.3,18.71123566]
[1743436086673,0.05564342,127.31,127.29,0.05925991]
[1743436086674,0.05564342,127.31,127.29,18.77069557]
[1743436086885,0.05564342,127.31,127.29,7.91545991]
[1743436087070,7.91134342,127.31,127.29,7.91545991]
[1743436087275,0.05564342,127.31,127.29,7.91545991]
[1743436087480,0.05564342,127.31,127.3,7.856]
[1743436087683,0.05564342,127.31,127.29,10.91449557]
[1743436087879,0.05564342,127.31,127.3,10.85523566]
[1743436088583,0.05564342,127.31,127.29,7.91555991]
[1743436088584,0.05564342,127.31,127.29,10.91449557]
[1743436088878,7.856,127.3,127.29,0.05925991]
[1743436091485,7.8584,127.27,127.25,354.3185]
[1743436091685,10.85523566,127.28,127.25,31.6]
[1743436091882,10.85523566,127.26,127.21,31.6]
[1743436092180,7.8606,127.23,127.21,31.6]
[1743436092779,0.05567112,127.23,127.21,42.51429053]
[1743436092976,0.05567112,127.23,127.22,10.85523566]
[1743436093182,0.05567112,127.23,127.22,18.71623566]
[1743436093683,0.05567112,127.23,127.22,7.861]
[1743436093987,0.05567112,127.23,127.21,39.52035487]
[1743436094287,0.05567112,127.23,127.21,31.65905487]
[1743436095281,0.05567112,127.23,127.22,7.861]
[1743436097988,0.05567112,127.23,127.21,31.65905487]
[1743436098489,0.05567112,127.23,127.22,7.861]
[1743436099486,7.861,127.22,127.21,0.05905487]
[1743436100391,7.8634,127.19,127.17,31.6]
[1743436100793,3.2378,127.22,127.17,31.6]
[1743436100991,7.8619,127.21,127.17,31.6]
[1743436101191,16.97548964,127.23,127.17,31.6]
[1743436101494,7.8619,127.21,127.17,31.6]
[1743436101692,7.91865694,127.21,127.19,0.05799814]
[1743436101883,0.05675694,127.21,127.19,0.05799814]
[1743436102194,7.8622,127.2,127.19,0.05799814]
[1743436106604,17.03224658,127.21,127.14,31.6]
[1743436106805,6.5644,127.2,127.14,31.6]
[1743436107106,16.97548964,127.19,127.12,11.0018]
[1743436107303,16.97548964,127.19,127.12,39.4669]
[1743436107505,3.1327,127.18,127.12,39.4669]
[1743436107705,7.8653,127.15,127.14,0.05158823]
[1743436108399,7.865,127.16,127.14,0.05158823]
[1743436109205,7.8653,127.15,127.14,0.05158823]
[1743436109409,0.05560413,127.17,127.14,0.05158823]
[1743436109798,7.8648,127.16,127.14,0.05158823]
[1743436109996,0.05560413,127.17,127.14,0.05158823]
[1743436110206,16.97548964,127.15,127.05,32.43038155]
[1743436110406,16.97548964,127.12,127.05,32.43038155]
[1743436110603,16.97548964,127.12,127.05,64.03038155]
[1743436111106,7.8687,127.1,127.05,71.90188155]
[1743436111407,7.92613358,127.1,127.07,0.04960092]
[1743436112210,7.869,127.09,127.07,0.04960092]
[1743436112704,0.05743358,127.1,127.07,0.04960092]
[1743436113206,7.8696,127.08,127.07,0.04960092]